[Event "Live Chess"]
[Site "Chess.com"]
[Date "2011.01.26"]
[Round "-"]
[White "hipposcottimus"]
[Black "petecolumbus"]
[Result "1-0"]
[CurrentPosition "r5nr/k6p/p5n1/1qp2p2/1P6/5QB1/P5PP/2RR2K1 b - -"]
[Timezone "UTC"]
[ECO "B00"]
[ECOUrl "https://www.chess.com/openings/Nimzowitsch-Defense-Mikenas-Variation"]
[UTCDate "2011.01.26"]
[UTCTime "22:19:00"]
[WhiteElo "1617"]
[BlackElo "1584"]
[TimeControl "60"]
[Termination "hipposcottimus won on time"]
[StartTime "22:19:00"]
[EndDate "2011.01.26"]
[EndTime "22:21:11"]
[Link "https://www.chess.com/game/live/91705971"]

1. e4 {[%clk 0:01:00]} 1... d6 {[%clk 0:01:00]} 2. d4 {[%clk 0:00:58.8]} 2... Nc6 {[%clk 0:00:59.9]} 3. d5 {[%clk 0:00:58]} 3... Ne5 {[%clk 0:00:58.4]} 4. f4 {[%clk 0:00:56.1]} 4... Ng6 {[%clk 0:00:58.3]} 5. Be3 {[%clk 0:00:50]} 5... e5 {[%clk 0:00:57.5]} 6. f5 {[%clk 0:00:49.1]} 6... N6e7 {[%clk 0:00:56.1]} 7. Nf3 {[%clk 0:00:48.7]} 7... g6 {[%clk 0:00:54.8]} 8. Bc4 {[%clk 0:00:48.4]} 8... gxf5 {[%clk 0:00:53.7]} 9. O-O {[%clk 0:00:47.8]} 9... fxe4 {[%clk 0:00:52.7]} 10. Ng5 {[%clk 0:00:47.4]} 10... f6 {[%clk 0:00:49.2]} 11. Nxe4 {[%clk 0:00:46.1]} 11... a6 {[%clk 0:00:46.3]} 12. Qh5+ {[%clk 0:00:45.7]} 12... Kd7 {[%clk 0:00:44.4]} 13. Be2 {[%clk 0:00:38.4]} 13... c6 {[%clk 0:00:41.7]} 14. Bg4+ {[%clk 0:00:37.3]} 14... Kc7 {[%clk 0:00:40.8]} 15. Be6 {[%clk 0:00:34.2]} 15... Bxe6 {[%clk 0:00:38.2]} 16. dxe6 {[%clk 0:00:33.9]} 16... d5 {[%clk 0:00:36.9]} 17. Nec3 {[%clk 0:00:31.5]} 17... d4 {[%clk 0:00:34.3]} 18. Rd1 {[%clk 0:00:31.1]} 18... c5 {[%clk 0:00:32.3]} 19. Na4 {[%clk 0:00:29]} 19... Qc8 {[%clk 0:00:26.8]} 20. Bf2 {[%clk 0:00:26.8]} 20... Qxe6 {[%clk 0:00:25.6]} 21. Nxc5 {[%clk 0:00:25.5]} 21... Qd5 {[%clk 0:00:23.7]} 22. b4 {[%clk 0:00:24.2]} 22... b6 {[%clk 0:00:22]} 23. Nd3 {[%clk 0:00:20.6]} 23... f5 {[%clk 0:00:16.4]} 24. Nd2 {[%clk 0:00:20.4]} 24... e4 {[%clk 0:00:15.1]} 25. Nf4 {[%clk 0:00:17.1]} 25... Qb5 {[%clk 0:00:12]} 26. Nb3 {[%clk 0:00:16.4]} 26... d3 {[%clk 0:00:10.8]} 27. cxd3 {[%clk 0:00:15.4]} 27... exd3 {[%clk 0:00:09.9]} 28. Nxd3 {[%clk 0:00:14.3]} 28... Ng6 {[%clk 0:00:07.6]} 29. Bg3+ {[%clk 0:00:14]} 29... Kb7 {[%clk 0:00:05.8]} 30. Qf3+ {[%clk 0:00:11.7]} 30... Ka7 {[%clk 0:00:04.2]} 31. Ndc5 {[%clk 0:00:09]} 31... Bxc5+ {[%clk 0:00:03.2]} 32. Nxc5 {[%clk 0:00:07.3]} 32... bxc5 {[%clk 0:00:02.6]} 33. Rac1 {[%clk 0:00:03.3]} 1-0

[Event "Live Chess"]
[Site "Chess.com"]
[Date "2011.01.26"]
[Round "-"]
[White "Maddy1234"]
[Black "hipposcottimus"]
[Result "1-0"]
[CurrentPosition "1k3n2/ppp2r1p/8/3N4/3p2QP/1K3PP1/PP2q3/RN5R b - -"]
[Timezone "UTC"]
[ECO "C20"]
[ECOUrl "https://www.chess.com/openings/Kings-Pawn-Opening-Wayward-Queen-Kiddie-Countergambit"]
[UTCDate "2011.01.26"]
[UTCTime "22:15:57"]
[WhiteElo "1427"]
[BlackElo "1609"]
[TimeControl "60"]
[Termination "Maddy1234 won on time"]
[StartTime "22:15:57"]
[EndDate "2011.01.26"]
[EndTime "22:17:59"]
[Link "https://www.chess.com/game/live/91705153"]

1. e4 {[%clk 0:01:00]} 1... e5 {[%clk 0:01:00]} 2. Qh5 {[%clk 0:00:58.6]} 2... Nf6 {[%clk 0:00:58.2]} 3. Qxe5+ {[%clk 0:00:56.8]} 3... Be7 {[%clk 0:00:57.7]} 4. Qg5 {[%clk 0:00:55.6]} 4... d5 {[%clk 0:00:57.3]} 5. e5 {[%clk 0:00:53.9]} 5... Ne4 {[%clk 0:00:43.3]} 6. Qxg7 {[%clk 0:00:52.2]} 6... Bf8 {[%clk 0:00:37.8]} 7. Qxh8 {[%clk 0:00:50.3]} 7... Bf5 {[%clk 0:00:29.3]} 8. d4 {[%clk 0:00:48.5]} 8... Bg6 {[%clk 0:00:28]} 9. Bh6 {[%clk 0:00:46.9]} 9... Nd7 {[%clk 0:00:25.3]} 10. g3 {[%clk 0:00:43]} 10... Qe7 {[%clk 0:00:23.1]} 11. Bh3 {[%clk 0:00:41.6]} 11... O-O-O {[%clk 0:00:21.9]} 12. Bxd7+ {[%clk 0:00:40.1]} 12... Qxd7 {[%clk 0:00:21.6]} 13. Bxf8 {[%clk 0:00:38.5]} 13... Qe8 {[%clk 0:00:18.7]} 14. f3 {[%clk 0:00:34.1]} 14... Ng5 {[%clk 0:00:13.2]} 15. h4 {[%clk 0:00:31.5]} 15... Ne6 {[%clk 0:00:12.9]} 16. Qf6 {[%clk 0:00:29.1]} 16... Nxf8 {[%clk 0:00:12.1]} 17. e6 {[%clk 0:00:27.5]} 17... fxe6 {[%clk 0:00:09.2]} 18. Ne2 {[%clk 0:00:25.6]} 18... Rd7 {[%clk 0:00:08.3]} 19. Nf4 {[%clk 0:00:24.2]} 19... Rf7 {[%clk 0:00:07.9]} 20. Qg5 {[%clk 0:00:21.5]} 20... e5 {[%clk 0:00:04.1]} 21. Qg4+ {[%clk 0:00:19.7]} 21... Kb8 {[%clk 0:00:02.3]} 22. Nxd5 {[%clk 0:00:18.6]} 22... exd4+ {[%clk 0:00:01]} 23. Kd1 {[%clk 0:00:16.9]} 23... Bxc2+ {[%clk 0:00:00.7]} 24. Kxc2 {[%clk 0:00:14.4]} 24... Qe2+ {[%clk 0:00:00.3]} 25. Kb3 {[%clk 0:00:10.9]} 1-0

[Event "Live Chess"]
[Site "Chess.com"]
[Date "2011.01.26"]
[Round "-"]
[White "hipposcottimus"]
[Black "Maddy1234"]
[Result "0-1"]
[CurrentPosition "r1b3r1/1p3k2/p2b3p/2B1n1p1/4Nn2/2N3Q1/PPP2PPP/R3K2R w KQ -"]
[Timezone "UTC"]
[ECO "C40"]
[ECOUrl "https://www.chess.com/openings/Kings-Pawn-Opening-Kings-Knight-McConnell-Defense"]
[UTCDate "2011.01.26"]
[UTCTime "22:13:54"]
[WhiteElo "1620"]
[BlackElo "1414"]
[TimeControl "60"]
[Termination "Maddy1234 won on time"]
[StartTime "22:13:54"]
[EndDate "2011.01.26"]
[EndTime "22:15:41"]
[Link "https://www.chess.com/game/live/91704602"]

1. e4 {[%clk 0:01:00]} 1... e5 {[%clk 0:01:00]} 2. Nf3 {[%clk 0:00:59.7]} 2... Qf6 {[%clk 0:00:58.8]} 3. Nc3 {[%clk 0:00:57.9]} 3... c6 {[%clk 0:00:58]} 4. d4 {[%clk 0:00:55.4]} 4... d6 {[%clk 0:00:55.9]} 5. d5 {[%clk 0:00:52.5]} 5... h6 {[%clk 0:00:54.2]} 6. Bc4 {[%clk 0:00:48.1]} 6... g5 {[%clk 0:00:52.3]} 7. Be3 {[%clk 0:00:43]} 7... Ne7 {[%clk 0:00:51.2]} 8. Nd2 {[%clk 0:00:42.1]} 8... c5 {[%clk 0:00:49.5]} 9. Qf3 {[%clk 0:00:38.8]} 9... a6 {[%clk 0:00:48.6]} 10. Qxf6 {[%clk 0:00:37]} 10... Rg8 {[%clk 0:00:46.3]} 11. Qxd6 {[%clk 0:00:35.6]} 11... Nf5 {[%clk 0:00:41.3]} 12. Qxe5+ {[%clk 0:00:34.6]} 12... Ne7 {[%clk 0:00:37.3]} 13. d6 {[%clk 0:00:33.7]} 13... Nd7 {[%clk 0:00:32.3]} 14. Bxf7+ {[%clk 0:00:19.2]} 14... Kxf7 {[%clk 0:00:29.7]} 15. Qg3 {[%clk 0:00:03.8]} 15... Ng6 {[%clk 0:00:28.1]} 16. e5 {[%clk 0:00:02.9]} 16... Ndxe5 {[%clk 0:00:26.3]} 17. Bxc5 {[%clk 0:00:01.2]} 17... Bxd6 {[%clk 0:00:23.4]} 18. Nde4 {[%clk 0:00:00.6]} 18... Nf4 {[%clk 0:00:21.4]} 0-1

[Event "Live Chess"]
[Site "Chess.com"]
[Date "2011.01.26"]
[Round "-"]
[White "Maddy1234"]
[Black "hipposcottimus"]
[Result "0-1"]
[CurrentPosition "5k2/pp4R1/2n4p/8/7P/2BP4/PPPK4/q7 w - -"]
[Timezone "UTC"]
[ECO "C20"]
[ECOUrl "https://www.chess.com/openings/Kings-Pawn-Opening-Wayward-Queen-Kiddie-Countergambit"]
[UTCDate "2011.01.26"]
[UTCTime "22:11:24"]
[WhiteElo "1400"]
[BlackElo "1632"]
[TimeControl "60"]
[Termination "hipposcottimus won on time"]
[StartTime "22:11:24"]
[EndDate "2011.01.26"]
[EndTime "22:13:37"]
[Link "https://www.chess.com/game/live/91703864"]

1. e4 {[%clk 0:01:00]} 1... e5 {[%clk 0:01:00]} 2. Qh5 {[%clk 0:00:58.6]} 2... Nf6 {[%clk 0:00:57.4]} 3. Qxe5+ {[%clk 0:00:56.7]} 3... Be7 {[%clk 0:00:57.2]} 4. d3 {[%clk 0:00:55.5]} 4... d5 {[%clk 0:00:56.9]} 5. exd5 {[%clk 0:00:52.9]} 5... O-O {[%clk 0:00:56.4]} 6. Qg5 {[%clk 0:00:51]} 6... Bd6 {[%clk 0:00:56.1]} 7. h4 {[%clk 0:00:48.2]} 7... Re8+ {[%clk 0:00:55.8]} 8. Ne2 {[%clk 0:00:45.8]} 8... Bg4 {[%clk 0:00:55.3]} 9. f3 {[%clk 0:00:44.3]} 9... Bh5 {[%clk 0:00:53.1]} 10. g4 {[%clk 0:00:43.3]} 10... h6 {[%clk 0:00:42.8]} 11. Qe3 {[%clk 0:00:40.9]} 11... Rxe3 {[%clk 0:00:39.4]} 12. Bxe3 {[%clk 0:00:39.7]} 12... Qe8 {[%clk 0:00:34.6]} 13. Bf2 {[%clk 0:00:35.8]} 13... Nxg4 {[%clk 0:00:30.6]} 14. fxg4 {[%clk 0:00:34.1]} 14... Bxg4 {[%clk 0:00:30.2]} 15. Nc3 {[%clk 0:00:30.9]} 15... c6 {[%clk 0:00:29.7]} 16. Bd4 {[%clk 0:00:29.3]} 16... Bg3+ {[%clk 0:00:25.3]} 17. Kd1 {[%clk 0:00:25.2]} 17... cxd5 {[%clk 0:00:23.2]} 18. Nxd5 {[%clk 0:00:22.3]} 18... Nc6 {[%clk 0:00:20.1]} 19. Bc3 {[%clk 0:00:18.1]} 19... Rd8 {[%clk 0:00:19.3]} 20. Rg1 {[%clk 0:00:16.7]} 20... Rxd5 {[%clk 0:00:17.8]} 21. Rxg3 {[%clk 0:00:15.5]} 21... f5 {[%clk 0:00:08.7]} 22. Bh3 {[%clk 0:00:12.1]} 22... Qg6 {[%clk 0:00:07.2]} 23. Bxg4 {[%clk 0:00:09.8]} 23... fxg4 {[%clk 0:00:06.9]} 24. Nf4 {[%clk 0:00:06.8]} 24... Qf5 {[%clk 0:00:04.8]} 25. Nxd5 {[%clk 0:00:05.1]} 25... Qxd5 {[%clk 0:00:03.5]} 26. Rxg4 {[%clk 0:00:04.1]} 26... Qh1+ {[%clk 0:00:03]} 27. Kd2 {[%clk 0:00:02]} 27... Qxa1 {[%clk 0:00:01.4]} 28. Rxg7+ {[%clk 0:00:00.6]} 28... Kf8 {[%clk 0:00:01.1]} 0-1

[Event "Live Chess"]
[Site "Chess.com"]
[Date "2011.01.26"]
[Round "-"]
[White "Zosa09"]
[Black "hipposcottimus"]
[Result "1-0"]
[CurrentPosition "r1bq1rk1/pp4pQ/2p1P3/2n1P3/8/3B4/PpP4P/1K1R2NR b - -"]
[Timezone "UTC"]
[ECO "B12"]
[ECOUrl "https://www.chess.com/openings/Caro-Kann-Defense-2.d4-d5"]
[UTCDate "2011.01.26"]
[UTCTime "22:09:30"]
[WhiteElo "1685"]
[BlackElo "1629"]
[TimeControl "60"]
[Termination "Zosa09 won by checkmate"]
[StartTime "22:09:30"]
[EndDate "2011.01.26"]
[EndTime "22:10:40"]
[Link "https://www.chess.com/game/live/91703348"]

1. d4 {[%clk 0:01:00]} 1... d5 {[%clk 0:01:00]} 2. e4 {[%clk 0:00:59.6]} 2... c6 {[%clk 0:00:59.7]} 3. Nc3 {[%clk 0:00:59]} 3... e6 {[%clk 0:00:56.5]} 4. f3 {[%clk 0:00:57.4]} 4... Bb4 {[%clk 0:00:54.9]} 5. Bd2 {[%clk 0:00:55.2]} 5... Bxc3 {[%clk 0:00:54.6]} 6. Bxc3 {[%clk 0:00:53.2]} 6... Nd7 {[%clk 0:00:54.3]} 7. e5 {[%clk 0:00:52.6]} 7... Ne7 {[%clk 0:00:53.1]} 8. f4 {[%clk 0:00:52.1]} 8... f6 {[%clk 0:00:52.5]} 9. Qf3 {[%clk 0:00:51.6]} 9... fxe5 {[%clk 0:00:50.8]} 10. fxe5 {[%clk 0:00:49.5]} 10... Nf5 {[%clk 0:00:46]} 11. O-O-O {[%clk 0:00:48.5]} 11... O-O {[%clk 0:00:45.2]} 12. Bd3 {[%clk 0:00:47]} 12... Nxd4 {[%clk 0:00:43.5]} 13. Qh3 {[%clk 0:00:45.8]} 13... Nf5 {[%clk 0:00:33.3]} 14. g4 {[%clk 0:00:41.8]} 14... d4 {[%clk 0:00:30.7]} 15. gxf5 {[%clk 0:00:37.9]} 15... dxc3 {[%clk 0:00:29.9]} 16. fxe6 {[%clk 0:00:37.2]} 16... cxb2+ {[%clk 0:00:29]} 17. Kb1 {[%clk 0:00:36.4]} 17... Nc5 {[%clk 0:00:25.7]} 18. Qxh7# {[%clk 0:00:34]} 1-0

[Event "Live Chess"]
[Site "Chess.com"]
[Date "2011.01.26"]
[Round "-"]
[White "hipposcottimus"]
[Black "13tone"]
[Result "0-1"]
[CurrentPosition "4r3/pp3pk1/2p1r1pp/8/3PR3/P2B2n1/1PP3P1/7K w - -"]
[Timezone "UTC"]
[ECO "B01"]
[ECOUrl "https://www.chess.com/openings/Scandinavian-Defense-Mieses-Kotrc-Main-Line-4.d4"]
[UTCDate "2011.01.26"]
[UTCTime "21:55:55"]
[WhiteElo "1418"]
[BlackElo "1536"]
[TimeControl "120+12"]
[Termination "13tone won by resignation"]
[StartTime "21:55:55"]
[EndDate "2011.01.26"]
[EndTime "22:09:07"]
[Link "https://www.chess.com/game/live/91699705"]

1. e4 {[%clk 0:02:00]} 1... d5 {[%clk 0:02:00]} 2. exd5 {[%clk 0:02:10.3]} 2... Qxd5 {[%clk 0:02:09.9]} 3. Nc3 {[%clk 0:02:20.4]} 3... Qa5 {[%clk 0:02:18.4]} 4. d4 {[%clk 0:02:30.8]} 4... e6 {[%clk 0:02:22.4]} 5. Bd2 {[%clk 0:02:30.5]} 5... c6 {[%clk 0:02:26.5]} 6. a3 {[%clk 0:02:29.6]} 6... Qc7 {[%clk 0:02:34]} 7. f4 {[%clk 0:02:36]} 7... Nf6 {[%clk 0:02:44.1]} 8. Nf3 {[%clk 0:02:46.8]} 8... Bd6 {[%clk 0:02:39.6]} 9. f5 {[%clk 0:02:44.5]} 9... O-O {[%clk 0:02:47.2]} 10. fxe6 {[%clk 0:02:53.4]} 10... Bxe6 {[%clk 0:02:57.2]} 11. Be2 {[%clk 0:03:04.8]} 11... Nbd7 {[%clk 0:03:04]} 12. O-O {[%clk 0:03:15.5]} 12... h6 {[%clk 0:03:10.8]} 13. Bd3 {[%clk 0:03:02.8]} 13... Bg4 {[%clk 0:03:16.6]} 14. Qe1 {[%clk 0:03:06.8]} 14... Bxf3 {[%clk 0:03:22.3]} 15. Rxf3 {[%clk 0:03:17.3]} 15... Bxh2+ {[%clk 0:03:32.7]} 16. Kh1 {[%clk 0:03:26.2]} 16... Nh5 {[%clk 0:03:27.8]} 17. Qh4 {[%clk 0:03:35.5]} 17... Ng3+ {[%clk 0:02:43.6]} 18. Rxg3 {[%clk 0:03:06.3]} 18... Bxg3 {[%clk 0:02:52]} 19. Qg4 {[%clk 0:03:12.3]} 19... Nf6 {[%clk 0:03:01.2]} 20. Qh3 {[%clk 0:03:02.2]} 20... Bf4 {[%clk 0:02:59]} 21. Be1 {[%clk 0:02:55.6]} 21... Rfe8 {[%clk 0:02:58.7]} 22. Bh4 {[%clk 0:03:05.3]} 22... Nd5 {[%clk 0:02:45.4]} 23. Ne4 {[%clk 0:03:11.6]} 23... Re6 {[%clk 0:02:39.1]} 24. Rf1 {[%clk 0:03:13.9]} 24... Rae8 {[%clk 0:02:30]} 25. Qf5 {[%clk 0:03:16.6]} 25... g6 {[%clk 0:02:00.1]} 26. Qg4 {[%clk 0:02:14.5]} 26... Kh7 {[%clk 0:01:58]} 27. Nf6+ {[%clk 0:01:58.1]} 27... Nxf6 {[%clk 0:01:55]} 28. Qxf4 {[%clk 0:01:34.2]} 28... Qxf4 {[%clk 0:02:04.2]} 29. Rxf4 {[%clk 0:01:45.7]} 29... Kg7 {[%clk 0:01:48.5]} 30. Bg3 {[%clk 0:01:39.2]} 30... Nh5 {[%clk 0:01:51.6]} 31. Re4 {[%clk 0:01:27.8]} 31... Nxg3+ {[%clk 0:02:00.4]} 0-1

[Event "Live Chess"]
[Site "Chess.com"]
[Date "2011.01.26"]
[Round "-"]
[White "hipposcottimus"]
[Black "lenaoman"]
[Result "0-1"]
[CurrentPosition "r4r1k/1p4pp/p2p4/2p2Nq1/2Pb4/1P5Q/4RPPP/4R1K1 b - -"]
[Timezone "UTC"]
[ECO "C41"]
[ECOUrl "https://www.chess.com/openings/Philidor-Defense-Exchange-Variation-4.Nxd4"]
[UTCDate "2011.01.26"]
[UTCTime "20:37:12"]
[WhiteElo "1424"]
[BlackElo "1436"]
[TimeControl "60+5"]
[Termination "lenaoman won by resignation"]
[StartTime "20:37:12"]
[EndDate "2011.01.26"]
[EndTime "20:41:48"]
[Link "https://www.chess.com/game/live/91676881"]

1. e4 {[%clk 0:01:00]} 1... e5 {[%clk 0:01:00]} 2. Nf3 {[%clk 0:01:03.5]} 2... d6 {[%clk 0:01:03.3]} 3. d4 {[%clk 0:01:07.1]} 3... exd4 {[%clk 0:01:06.4]} 4. Nxd4 {[%clk 0:01:10.6]} 4... c5 {[%clk 0:01:10.1]} 5. Nb3 {[%clk 0:00:54.7]} 5... Nc6 {[%clk 0:01:13.1]} 6. c4 {[%clk 0:00:47]} 6... f5 {[%clk 0:01:08.7]} 7. Nc3 {[%clk 0:00:49.7]} 7... Nf6 {[%clk 0:01:11.8]} 8. Bg5 {[%clk 0:00:52.5]} 8... Be7 {[%clk 0:01:15.5]} 9. exf5 {[%clk 0:00:55.7]} 9... Bxf5 {[%clk 0:01:18.1]} 10. Bd3 {[%clk 0:01:00.4]} 10... Bxd3 {[%clk 0:01:12]} 11. Qxd3 {[%clk 0:01:03.5]} 11... O-O {[%clk 0:01:13.1]} 12. O-O {[%clk 0:01:00.4]} 12... Nb4 {[%clk 0:01:16.1]} 13. Qh3 {[%clk 0:01:01.6]} 13... a6 {[%clk 0:01:10.3]} 14. Rfe1 {[%clk 0:00:46.9]} 14... Nc6 {[%clk 0:01:10.4]} 15. Bxf6 {[%clk 0:00:34.7]} 15... Bxf6 {[%clk 0:01:13.1]} 16. Nd5 {[%clk 0:00:39.4]} 16... Bxb2 {[%clk 0:01:07]} 17. Rad1 {[%clk 0:00:14]} 17... Nd4 {[%clk 0:01:06.5]} 18. Rd2 {[%clk 0:00:14]} 18... Nxb3 {[%clk 0:01:03.9]} 19. axb3 {[%clk 0:00:18.6]} 19... Bd4 {[%clk 0:01:06.1]} 20. Rde2 {[%clk 0:00:22.3]} 20... Qg5 {[%clk 0:00:51.8]} 21. Ne7+ {[%clk 0:00:21.3]} 21... Kh8 {[%clk 0:00:54.8]} 22. Nf5 {[%clk 0:00:15.9]} 0-1

[Event "Live Chess"]
[Site "Chess.com"]
[Date "2011.01.26"]
[Round "-"]
[White "lenaoman"]
[Black "hipposcottimus"]
[Result "0-1"]
[CurrentPosition "rn2r1k1/pp3ppp/6n1/2R1P3/3P4/1b3N2/4qBPP/2Q2R1K w - -"]
[Timezone "UTC"]
[ECO "A02"]
[ECOUrl "https://www.chess.com/openings/Birds-Opening-Froms-Gambit-2.fxe5-d6-3.exd6-Bxd6-4.Nf3"]
[UTCDate "2011.01.26"]
[UTCTime "20:33:00"]
[WhiteElo "1428"]
[BlackElo "1432"]
[TimeControl "60+5"]
[Termination "hipposcottimus won by resignation"]
[StartTime "20:33:00"]
[EndDate "2011.01.26"]
[EndTime "20:36:53"]
[Link "https://www.chess.com/game/live/91675692"]

1. f4 {[%clk 0:01:00]} 1... e5 {[%clk 0:01:00]} 2. fxe5 {[%clk 0:01:01.8]} 2... d6 {[%clk 0:01:04.7]} 3. exd6 {[%clk 0:01:05.3]} 3... Bxd6 {[%clk 0:01:08.8]} 4. Nf3 {[%clk 0:01:09.4]} 4... Ne7 {[%clk 0:01:09.5]} 5. e4 {[%clk 0:01:07.1]} 5... Ng6 {[%clk 0:01:02.1]} 6. d4 {[%clk 0:01:09]} 6... O-O {[%clk 0:00:52.8]} 7. e5 {[%clk 0:01:10.8]} 7... Re8 {[%clk 0:00:56.7]} 8. Be2 {[%clk 0:01:13.4]} 8... Be7 {[%clk 0:00:43.7]} 9. O-O {[%clk 0:01:16.3]} 9... Be6 {[%clk 0:00:41.5]} 10. c3 {[%clk 0:01:19.3]} 10... c5 {[%clk 0:00:45.2]} 11. Be3 {[%clk 0:01:19.1]} 11... Qb6 {[%clk 0:00:37.3]} 12. Kh1 {[%clk 0:01:11]} 12... Qxb2 {[%clk 0:00:34.9]} 13. Nbd2 {[%clk 0:01:13.4]} 13... Qxc3 {[%clk 0:00:38.6]} 14. Bf2 {[%clk 0:00:58.9]} 14... Bd5 {[%clk 0:00:32.5]} 15. Rc1 {[%clk 0:00:53.3]} 15... Qa5 {[%clk 0:00:25.8]} 16. Nb3 {[%clk 0:00:50.9]} 16... Qxa2 {[%clk 0:00:25.3]} 17. Nxc5 {[%clk 0:00:51.5]} 17... Bxc5 {[%clk 0:00:28.6]} 18. Rxc5 {[%clk 0:00:53.1]} 18... Bb3 {[%clk 0:00:29.5]} 19. Qc1 {[%clk 0:00:56.2]} 19... Qxe2 {[%clk 0:00:30.9]} 0-1

[Event "Live Chess"]
[Site "Chess.com"]
[Date "2011.01.26"]
[Round "-"]
[White "hipposcottimus"]
[Black "lenaoman"]
[Result "0-1"]
[CurrentPosition "5r1k/6pp/p2Q1q2/2p2P2/1pP2bP1/5P2/P5RP/3R2K1 b - -"]
[Timezone "UTC"]
[ECO "C41"]
[ECOUrl "https://www.chess.com/openings/Philidor-Defense-Exchange-Variation-4.Nxd4"]
[UTCDate "2011.01.26"]
[UTCTime "20:27:11"]
[WhiteElo "1424"]
[BlackElo "1436"]
[TimeControl "60+5"]
[Termination "lenaoman won by resignation"]
[StartTime "20:27:11"]
[EndDate "2011.01.26"]
[EndTime "20:32:51"]
[Link "https://www.chess.com/game/live/91674025"]

1. e4 {[%clk 0:01:00]} 1... e5 {[%clk 0:01:00]} 2. Nf3 {[%clk 0:01:04.6]} 2... d6 {[%clk 0:01:02.5]} 3. d4 {[%clk 0:01:08]} 3... exd4 {[%clk 0:01:05.7]} 4. Nxd4 {[%clk 0:01:11.6]} 4... a6 {[%clk 0:01:09]} 5. c4 {[%clk 0:01:14.9]} 5... c5 {[%clk 0:01:12.1]} 6. Nb3 {[%clk 0:01:13]} 6... Nc6 {[%clk 0:01:10.8]} 7. Nc3 {[%clk 0:01:16.8]} 7... f5 {[%clk 0:01:09.3]} 8. Bd3 {[%clk 0:01:17.1]} 8... Nf6 {[%clk 0:01:10.8]} 9. Bg5 {[%clk 0:01:19.8]} 9... Be7 {[%clk 0:01:13.8]} 10. Bxf6 {[%clk 0:01:23.6]} 10... Bxf6 {[%clk 0:01:16.8]} 11. O-O {[%clk 0:01:28.3]} 11... O-O {[%clk 0:01:15.7]} 12. Nd5 {[%clk 0:01:27.5]} 12... Ne5 {[%clk 0:01:04.9]} 13. exf5 {[%clk 0:01:27.7]} 13... Nxd3 {[%clk 0:01:06]} 14. Qxd3 {[%clk 0:01:31.9]} 14... Be5 {[%clk 0:01:00.5]} 15. g4 {[%clk 0:01:10.3]} 15... Bxb2 {[%clk 0:01:00.6]} 16. Rae1 {[%clk 0:01:07.1]} 16... Qg5 {[%clk 0:01:00.8]} 17. Ne7+ {[%clk 0:00:59]} 17... Kh8 {[%clk 0:01:00.8]} 18. Nxc8 {[%clk 0:00:51]} 18... Raxc8 {[%clk 0:01:00.2]} 19. f3 {[%clk 0:00:41.9]} 19... Be5 {[%clk 0:00:58.4]} 20. Re2 {[%clk 0:00:24.6]} 20... Rf6 {[%clk 0:00:58.4]} 21. Rg2 {[%clk 0:00:28.7]} 21... Rcf8 {[%clk 0:01:00.7]} 22. Nd2 {[%clk 0:00:28]} 22... Bf4 {[%clk 0:00:44.5]} 23. Ne4 {[%clk 0:00:31.5]} 23... Qh6 {[%clk 0:00:36.3]} 24. Nxf6 {[%clk 0:00:34.4]} 24... Qxf6 {[%clk 0:00:38.2]} 25. Qd5 {[%clk 0:00:29.5]} 25... b5 {[%clk 0:00:38.4]} 26. Rd1 {[%clk 0:00:21.3]} 26... b4 {[%clk 0:00:35.8]} 27. Qxd6 {[%clk 0:00:23.4]} 0-1

[Event "Live Chess"]
[Site "Chess.com"]
[Date "2011.01.26"]
[Round "-"]
[White "alex_stojanov"]
[Black "hipposcottimus"]
[Result "0-1"]
[CurrentPosition "r4rk1/p1p3pp/2p5/5Pb1/3P4/1R5K/1P5P/8 w - -"]
[Timezone "UTC"]
[ECO "C65"]
[ECOUrl "https://www.chess.com/openings/Ruy-Lopez-Opening-Berlin-Defense-4.Bxc6-dxc6"]
[UTCDate "2011.01.26"]
[UTCTime "20:19:41"]
[WhiteElo "1271"]
[BlackElo "1432"]
[TimeControl "300+3"]
[Termination "hipposcottimus won by resignation"]
[StartTime "20:19:41"]
[EndDate "2011.01.26"]
[EndTime "20:26:44"]
[Link "https://www.chess.com/game/live/91671836"]

1. e4 {[%clk 0:05:00]} 1... e5 {[%clk 0:05:00]} 2. Nf3 {[%clk 0:04:57.1]} 2... Nc6 {[%clk 0:05:01.1]} 3. Bb5 {[%clk 0:04:55.7]} 3... Nf6 {[%clk 0:05:03.7]} 4. Bxc6 {[%clk 0:04:55.8]} 4... dxc6 {[%clk 0:05:06.3]} 5. Nxe5 {[%clk 0:04:53]} 5... Nxe4 {[%clk 0:05:08]} 6. d3 {[%clk 0:04:50.3]} 6... Nxf2 {[%clk 0:04:56.2]} 7. Kxf2 {[%clk 0:04:51.2]} 7... Qd4+ {[%clk 0:04:57.6]} 8. Be3 {[%clk 0:04:33.6]} 8... Qxe5 {[%clk 0:04:55.9]} 9. Re1 {[%clk 0:04:34.7]} 9... Be6 {[%clk 0:04:32.4]} 10. g3 {[%clk 0:03:54.1]} 10... Bc5 {[%clk 0:04:28.7]} 11. d4 {[%clk 0:03:52.6]} 11... Qf6+ {[%clk 0:04:28.9]} 12. Qf3 {[%clk 0:03:47.6]} 12... Qxf3+ {[%clk 0:04:22.3]} 13. Kxf3 {[%clk 0:03:49]} 13... Bd6 {[%clk 0:04:22.5]} 14. Nc3 {[%clk 0:03:35.1]} 14... O-O {[%clk 0:04:21.8]} 15. Kg2 {[%clk 0:03:32.5]} 15... b5 {[%clk 0:04:12.7]} 16. Rad1 {[%clk 0:03:30.3]} 16... b4 {[%clk 0:04:11.3]} 17. Ne4 {[%clk 0:03:19.4]} 17... Bd5 {[%clk 0:04:09.5]} 18. Bg5 {[%clk 0:03:01]} 18... f5 {[%clk 0:04:06.9]} 19. Kh3 {[%clk 0:02:16.7]} 19... Bxe4 {[%clk 0:04:05.5]} 20. g4 {[%clk 0:02:06.3]} 20... Bxc2 {[%clk 0:04:02.9]} 21. Rd2 {[%clk 0:02:01.1]} 21... b3 {[%clk 0:03:54.7]} 22. axb3 {[%clk 0:01:58.8]} 22... Bxb3 {[%clk 0:03:56.7]} 23. gxf5 {[%clk 0:01:51]} 23... Bb4 {[%clk 0:03:57.3]} 24. Re3 {[%clk 0:01:41.8]} 24... Bxd2 {[%clk 0:03:57.3]} 25. Rxb3 {[%clk 0:01:41.1]} 25... Bxg5 {[%clk 0:03:59.1]} 0-1